Cogmind - Beta 10.2 @@@ ROGUE MODE // 2021.04.27 @ 18:12:55 Player: Cinquain Result: Self-destructed Performance ------------- Evolutions (1) 500 Regions Visited (2) 400 Robots Destroyed (86) 430 Value Destroyed (1651) 1651 Prototype IDs (2) 40 Alien Tech Used (0) 0 Bonus (105) 105 TOTAL SCORE: 3126 Bonus ------- High Alert Combat Kills 105 Cogmind --------- Core Integrity 141/400 Matter 300/300 Energy 280/280 System Corruption 1% Temperature Cool (0) Movement Treading (180) Ox1 Location -9/Materials Parts ------- > --- POWER (1) -------- Heavy Ion Engine > --- PROPULSION (2) --- Light Treads Improved Treads > --- UTILITY (4) ------ Large Storage Unit Large Storage Unit Large Storage Unit Improved Signal Interpreter > --- WEAPON (2) ------- Improved Assault Rifle Improved Assault Rifle > --- INVENTORY (22) --- Ion Engine Light Ion Engine Heavy Ion Engine Light Treads Light Treads Aluminum Leg Aluminum Leg Aluminum Leg Medium Storage Unit Medium Storage Unit Sensor Array Light Armor Plating Hacking Suite Hacking Suite Small Laser Light Assault Rifle Heavy Assault Rifle Improved Assault Rifle Improved Assault Rifle Improved Assault Rifle Grenade Launcher Peak State ------------ > --- POWER ------------ Heavy Ion Engine > --- PROPULSION ------- Light Treads Improved Treads > --- UTILITY ---------- Large Storage Unit Large Storage Unit Large Storage Unit Improved Signal Interpreter > --- WEAPON ----------- Improved Assault Rifle Improved Assault Rifle > --- INVENTORY -------- Ion Engine Light Ion Engine Heavy Ion Engine Light Treads Light Treads Aluminum Leg Aluminum Leg Aluminum Leg Medium Storage Unit Medium Storage Unit Sensor Array Light Armor Plating Hacking Suite Hacking Suite Small Laser Light Assault Rifle Heavy Assault Rifle Improved Assault Rifle Improved Assault Rifle Improved Assault Rifle Grenade Launcher [Rating: 20] Favorites ----------- Power Heavy Ion Engine Engine Heavy Ion Engine Propulsion Light Treads Treads Light Treads Wheel Wheel Utility Large Storage Unit Storage Large Storage Unit Processor Improved Signal Interpreter Weapon Improved Assault Rifle Ballistic Gun Improved Assault Rifle Ballistic Cannon Light Cannon Launcher Grenade Launcher Build | -11 -10 -9 ------- Run | Scr Mat Mat Slots Evolved 2 | . . 2 Power . | . . . Propulsion . | . . . Utility 2 | . . 2 Weapon . | . . . Parts Attached 34 | 6 7 21 Power 3 | 1 . 2 Engine 3 | 1 . 2 Core . | . . . Reactor . | . . . Propulsion 6 | 2 . 4 Treads 4 | . . 4 Leg . | . . . Wheel 2 | 2 . . Hover . | . . . Flight . | . . . Utility 7 | 1 3 3 Device . | . . . Storage 4 | 1 2 1 Processor 3 | . 1 2 Hackware . | . . . Protection . | . . . Artifact . | . . . Weapon 18 | 2 4 12 Energy Gun . | . . . Energy Cannon . | . . . Ballistic Gun 14 | 2 3 9 Ballistic Cannon 1 | . 1 . Launcher 3 | . . 3 Special Weapon . | . . . Impact Weapon . | . . . Slashing Weapon . | . . . Piercing Weapon . | . . . Special Melee Weapon . | . . . Unidentified Prototypes 2 | . . 2 Parts Lost 4 | . . 4 Power . | . . . Propulsion 3 | . . 3 Utility . | . . . Weapon 1 | . . 1 Highest Loss Streak 1 | . . 1 Average Slot Usage (%) 97 | . 97 97 Engine 11 | . 14 10 Treads 17 | . . 20 Wheel 5 | . 28 . Storage 31 | . 22 33 Processor 8 | . 2 9 Ballistic Gun 20 | . 16 21 Ballistic Cannon 2 | . 11 . Naked Turns . | . . . Heaviest Build 62 | 12 42 62 Greatest Support 43 | 20 20 43 Greatest Overweight (x) 5 | . 2 5 Average Overweight (x) 1 | . 1 1 Largest Inventory Capacity 22 | 6 16 22 Average Capacity 20 | 4 12 22 Most Carried 22 | 6 16 22 Average Carried 18 | 3 9 20 Final Capacity 22 | 6 16 22 Final Carried 21 | 6 16 21 Class Distribution -------------------- 81% | Hauler-Mutant 18% | Mutant Dominant Class ---------------- Mutant | -10/Materials Hauler-Mutant | -9/Materials Resources | -11 -10 -9 ----------- Run | Scr Mat Mat Matter Collected 1800 | 217 376 1207 Remotely . | . . . Salvage Created 3265 | . 487 2778 Parts 203 | . 31 172 Haulers Intercepted 8 | . 2 6 Recyclers Shooed 5 | . . 5 Parts Field Recycled . | . . . Retrieved Matter . | . . . Parts Self-Destructed . | . . . Prevented . | . . . Kills | -11 -10 -9 ------- Run | Scr Mat Mat Combat Hostiles Destroyed 43 | . 10 33 Guns 28 | . 9 19 Cannons 3 | . 1 2 AOE 12 | . . 12 Classes Destroyed 11 | . 6 5 Worker 9 | . . 9 Builder 5 | . . 5 Hauler 8 | . 2 6 Recycler 14 | . 2 12 Mechanic 1 | . . 1 Operator 2 | . 1 1 Watcher 4 | . 1 3 Swarmer 14 | . 6 8 Grunt 17 | . 4 13 Duelist 2 | . . 2 Sentry 10 | . . 10 Best Kill Streak 6 | . 4 6 Combat Bots Only 4 | . 4 4 Max Kills in Single Turn 3 | . 2 3 Gunslinging . | . . . Exploded 3 | . . 3 Melee . | . . . Uniques/NPCs Destroyed . | . . . Combat | -11 -10 -9 -------- Run | Scr Mat Mat Damage Taken 1911 | . 447 1464 Core 392 | . 133 259 Absorbed by Shields . | . . . Core Remaining (%) 73 | 100 46 . Volleys Fired 217 | . 44 173 Largest 2 | . 2 2 Hottest 65 | . 55 65 Shots Fired 420 | . 88 332 Gun 377 | . 62 315 Cannon 38 | . 26 12 Launcher 5 | . . 5 Special . | . . . Kinetic 415 | . 88 327 Thermal . | . . . Explosive 5 | . . 5 Electromagnetic . | . . . Robot Hit Streak 16 | . 7 16 Robot Miss Streak 7 | . 4 7 Penetration Max . | . . . Secondary Targets 2 | . 1 1 Max Gunslinging Chain 1 | . 1 1 Shots Hit Robots 262 | . 49 213 Core Hits 126 | . 24 102 Critical Hits 2 | . 1 1 Critical Kills 1 | . 1 . Critical Parts Destroyed 1 | . . 1 Melee Attacks . | . . . Impact . | . . . Slashing . | . . . Piercing . | . . . Sneak Attacks . | . . . Combat Hostiles . | . . . Follow-up Attacks . | . . . Damage Inflicted 4536 | . 640 3896 Guns 3397 | . 377 3020 Cannons 391 | . 263 128 Explosions 748 | . . 748 Melee . | . . . Ramming . | . . . Kinetic 3788 | . 640 3148 Thermal 299 | . . 299 Explosive 407 | . . 407 Electromagnetic 42 | . . 42 Impact . | . . . Slashing . | . . . Piercing . | . . . Highest Corruption 6 | . 6 1 Average Corruption 1 | . 5 1 Corruption Purged . | . . . Effects 23 | . 6 17 Message Errors 3 | . . 3 Matter Fused 5 | . 5 . Energy Discharges 4 | . . 4 Data Loss (minor) 6 | . 1 5 Targeting Errors 5 | . . 5 Overload Shots . | . . . Overflow Damage 98 | . . 98 Projectiles . | . . . Explosions 98 | . . 98 Melee . | . . . Knockbacks 3 | . 1 2 Impact . | . . . Kinetic 3 | . 1 2 Secondary . | . . . Self-Inflicted Damage 47 | . . 47 Shots 2 | . . 2 Rammed . | . . . Targets Rammed . | . . . Kicked . | . . . Crushed . | . . . Highest Temperature 46 | . 46 10 Average Temperature 10 | . 16 2 Received Heat Transfer 423 | . 42 381 Siege Activations . | . . . Robots Corrupted . | . . . Combat Hostiles . | . . . Parts Fried . | . . . Impact Corruptions . | . . . Robots Melted . | . . . Combat Hostiles . | . . . Parts Melted . | . . . Heat Transferred 300 | . . 300 Parts Sabotaged . | . . . Parts Stolen . | . . . Parts Stripped . | . . . Power Chain Reactions . | . . . Missiles Intercepted . | . . . Alert | -11 -10 -9 ------- Run | Scr Mat Mat Peak Influence 594 | . 251 594 Initial 26 | . . 26 Average 151 | . 92 166 Maximum Alert Level 2 | . 1 2 Low Security (%) 76 | 100 96 71 Level 1 10 | . 3 12 Level 2 13 | . . 16 Level 3 . | . . . Level 4 . | . . . Level 5 . | . . . High Security . | . . . Max Security . | . . . Squads Dispatched 3 | . 1 2 Investigation 2 | . 1 1 Extermination . | . . . Reinforcement 1 | . . 1 Assault . | . . . Garrison . | . . . Intercept . | . . . Construction Impeded . | . . . Haulers Reinforced . | . . . Stealth | -11 -10 -9 --------- Run | Scr Mat Mat Distress Signals 8 | . 3 5 Communications Jammed . | . . . Distress Signals . | . . . Times Spotted 74 | . 17 57 Peak Tracking Total 5 | . 5 4 Tactical Retreats 1 | . . 1 Traps | -11 -10 -9 ------- Run | Scr Mat Mat Traps Triggered 9 | . 6 3 Indirectly . | . . . Trap Hack Attempts . | . . . Triggered . | . . . Disarmed . | . . . Reprogrammed . | . . . Reused . | . . . Traps Extracted . | . . . Installed . | . . . Triggered . | . . . Machines | -11 -10 -9 ---------- Run | Scr Mat Mat Machines Disabled 12 | . 1 11 Max in Single Turn 7 | . 1 7 Machines Sabotaged . | . . . Garrisons Compromised . | . . . Overloaded Fab Kills . | . . . Fab Network Shutdowns . | . . . Hacking | -11 -10 -9 --------- Run | Scr Mat Mat Machines Accessed 18 | . 7 11 Terminals 15 | . 6 9 Fabricators . | . . . Repair Stations . | . . . Recycling Units 3 | . 1 2 Scanalyzers . | . . . Garrison Access . | . . . Total Hacks 47 | . 16 31 Successful 25 | . 9 16 Failed 22 | . 7 15 Catastrophic 1 | . 1 . Database Lockouts . | . . . Manual 36 | . 12 24 Terminals 42 | . 15 27 Fabricators . | . . . Repair Stations . | . . . Recycling Units 5 | . 1 4 Scanalyzers . | . . . Garrison Access . | . . . Terminal Hacks 14 | . 5 9 Record 1 | . . 1 Part Schematic 2 | . 2 . Robot Analysis 2 | . 1 1 Alert Level 1 | . . 1 Unreport Threat 5 | . 1 4 Locate Traps 1 | . 1 . Hauler Manifests 2 | . . 2 Fabricator Hacks . | . . . Repair Station Hacks . | . . . Recycling Unit Hacks 5 | . 1 4 Report Inventory 5 | . 1 4 Scanalyzer . | . . . Garrison Access Hacks . | . . . Unauthorized Hacks 6 | . 3 3 Terminals 6 | . 3 3 Botnet 4 | . 2 2 Operators 2 | . 1 1 Fabricators . | . . . Repair Stations . | . . . Recycling Units . | . . . Scanalyzers . | . . . Garrison Access . | . . . Data Cores Recovered 1 | . 1 . Used . | . . . Hacking Detections 15 | . 5 10 Full Trace Events . | . . . Feedback Events . | . . . Feedback Blocked . | . . . Robot Schematics Acquired . | . . . Robots Built . | . . . Matter . | . . . Time . | . . . Total Robot Build Rating . | . . . Part Schematics Acquired 2 | . 2 . Parts Built . | . . . Matter . | . . . Time . | . . . Total Part Build Rating . | . . . Parts Repaired . | . . . Time . | . . . Parts Recycled . | . . . Recycled Matter . | . . . Retrieved Matter . | . . . Retrieved Components . | . . . Parts Scanalyzed . | . . . Part Schematics Acquired . | . . . Parts Damaged . | . . . Bothacking | -11 -10 -9 ------------ Run | Scr Mat Mat Used RIF Installer . | . . . Robots Hacked . | . . . Non-combat . | . . . Combat . | . . . Robot Hacks Applied . | . . . Relay Couplers Released . | . . . Robots Rewired . | . . . Allies Hacked . | . . . Hacks Repelled . | . . . Allies | -11 -10 -9 -------- Run | Scr Mat Mat Total Allies . | . . . Largest Group . | . . . Highest-Rated Group . | . . . Highest-Rated Ally . | . . . Total Orders . | . . . Ally Attacks . | . . . Total Damage . | . . . Kills . | . . . Allies Corrupted . | . . . Allies Melted . | . . . Intel | -11 -10 -9 ------- Run | Scr Mat Mat Robot Analysis Total 2 | . 1 1 Derelict Logs Recovered . | . . . Drone Launches . | . . . Drone Recoveries . | . . . Exploration | -11 -10 -9 ------------- Run | Scr Mat Mat Turns Passed 4858 | 61 871 3926 Spaces Moved 2647 | 62 722 1863 Core 18 | 18 . . Treads 1771 | . . 1771 Legs . | . . . Wheels 858 | 44 722 92 Hover . | . . . Flight . | . . . Fastest Speed 50 | 50 80 100 Average Speed 151 | 71 91 176 Slowest Speed 220 | 80 100 220 Overloaded Moves . | . . . Propulsion Burnouts . | . . . Robots Hopped . | . . . Cave-ins Triggered . | . . . Exploration Rate (%) 64 | 4 92 96 Regions Visited 2 Branch Regions . Pre-discovered Areas . | . . . Known Exits Taken . | . . . Unknown Exits Taken 2 | 1 1 . Scrap Searched . | . . . Spaces Dug . | . . . Terrain Destroyed 57 | . . 57 Melee . | . . . Projectile . | . . . AOE 57 | . . 57 Terrain Rammed . | . . . Walls Destroyed . | . . . Machines Disabled . | . . . Actions | -11 -10 -9 --------- Run | Scr Mat Mat Total 3093 | 78 852 2163 Wait 140 | . 62 78 Move 2645 | 61 721 1863 Hop . | . . . Pick Up 44 | 11 13 20 Fast Attach 3 | 1 2 . Attach 17 | 5 . 12 Detach . | . . . Swap 14 | . 5 9 Drop 13 | . 5 8 Fire 217 | . 44 173 Melee . | . . . Ram . | . . . Kick . | . . . Crush . | . . . Escape Stasis . | . . . Rewire . | . . . Trap . | . . . Miscellaneous . | . . . Route ------- -11/Scrapyard -10/Materials (discovered 5 exits: *Mat x3 / [*Min x2]) -9/Materials (discovered 5 exits: *Mat x3 / *Min x2) History --------- Turn | Location | Event 11 | -11/Scrapyard | Discovered new exit (range 16) 62 | -11/Scrapyard | Entered Materials 167 | -10/Materials | Discovered new exit (range 9) 244 | -10/Materials | Discovered new exit (range 13) 307 | -10/Materials | Build established: Mutant 307 | -10/Materials | Core integrity fell below 50% 536 | -10/Materials | Discovered new exit (range 8) 696 | -10/Materials | Discovered new exit (range 6) 867 | -10/Materials | Discovered new exit (range 16) 933 | -10/Materials | Entered another Materials area 933 | -9/Materials | Evolved 2 slots: Utility x2 1039 | -9/Materials | Discovered new exit (range 9) 1245 | -9/Materials | Build established: Hauler-Mutant 1455 | -9/Materials | Discovered new exit (range 5) 1460 | -9/Materials | Identified exit to Materials 1639 | -9/Materials | Discovered new exit (range 15) 1792 | -9/Materials | Core integrity fell below 50% 2208 | -9/Materials | Discovered exit to Materials (range 16) 2331 | -9/Materials | Discovered new exit (range 7) 4672 | -9/Materials | Identified exit to Mines 4859 | -9/Materials | Self-destructed Last Messages --------------- 04707_ K-01 Serf collects debris. 04712_ System corrupted: Imp. Assault Rifle targeting data glitched. 04712_ K-01 Serf destroyed. 04714_ R-06 Scavenger collects Wheel. 04718_ Destroyed Com. Wheel. 04746_ R-06 Scavenger collects Sml. Storage Unit. 04749_ R-06 Scavenger collects Lgt. Ion Engine. 04753_ R-06 Scavenger collects Com. Wheel. 04756_ R-06 Scavenger collects Unknown Device. 04767_ R-06 Scavenger destroyed. 04777_ Acquired 42 matter. 04785_ W-16 Scout destroyed. 04800_ Acquired 6 matter. 04808_ R-06 Scavenger collects Hover Unit. 04808_ R-06 Scavenger collects Sensor Array. 04812_ U-05 Engineer builds a Door. 04815_ Atomic Centrifuge disabled. 04828_ Acquired 6 matter. 04855_ R-06 Scavenger inserts Wheel into recycling unit. 04859_ Recycling unit begins recycling process. Map ----- +----------------------------------------------------+ | ### *% /] #""!"|""# #%* ####### # | | #?# [[ /! # "!"|" ######!% ##????# # | | #?# [ % ] # ##### ! #????# + [ | | #?# #????# # | | ### > !T= #???## ###### | | %!%=#???# ##### | | ######+## ##### %=#???# | | ## ############## ##???# | | """"" ## #????????#!!=!% #????# | | """"" ## """ #????????#!!%!= #????# ##### | | """"" ## """ #????????#!! * #????#######???? | | """"" ## """ #????????#!! ######??######## | | """"" ## #????????#!! #??# # | | """"" ####+####????????#!! #??# # | | """"" #??# #???????????##### #??# # | | #??# #???????????????# #??# ]] # | | #### ###????????????## %!""" #??# ]] # | | % #########????# % """ #??# # | | %+ ######% """ #######+### | | % ## = +% | | ######## ## ""###### % | | # ## ## """#????# | | #!!! ## ## """#????# ##+##### #### | | #!! ## ## #????# # !# # # | | #!! # ###+######### # # # | | # # @ # """" + #### | | + # #### # """" # #??? | | # """ # #??###### """" # #### | | # """ # ###+### #???????# # # | | # """ ######## # #???????######## # "" | | # #??????# # #??????????????# # "" | | ###+########## # #??????????????# # "" | | ### # # # %################ # | | # # # % # "" | | + # # % + "" | | ####### # # # # "" | | #?# # # #""r """ """ # | | #?# #? # ##"Y """"""""" #### | | #?# #? ######"" " """ " #? | | #?# #?? #????# # | | #?# #?? #????# # | | #?# #???######????# #### + | | ### ############### #??# # | | [### ##########+##??### # | | !*+ * ############### < #??????? ????# #? | | #######+######?????????# #????? "" ??# #? | | ?# *%!!*!* #?????????#####????# """ #?# #??# | | ?# #??????????????????# """ ### #### | | ?# """ #?????????????????#% "S + | | ?# """ #?????????????????## """ ######## | +----------------------------------------------------+ Best States ------------- Heat Dissipation 28 Energy Generation 14 Energy Capacity 280 Matter Stores 300 Matter Capacity 300 Sight Range 16 Terrain Scan Density 10 Evasion (%) 50 Recoil Reduction 2 Item Schematics ----------------- Med. Storage Unit | -10/Materials | Hacked Lrg. Storage Unit | -10/Materials | Hacked Robot Schematics ------------------ None Fabricated ------------ Nothing Alien Tech Used ----------------- None Achievements -------------- None Challenges ------------ None Game ------ Seed ImprovedMiningRail Manual? 1 Play Time 00:33:24 Cumulative 69.5 hours Start 2021.04.27 @ 15:48:56 End 2021.04.27 @ 18:12:55 Sessions 3 Manual Loads 0 Difficulty Rogue Special Mode None Game No. 36 Rogue 33 Adventurer 3 Explorer 0 Win Type - Total 2 Types 2/0/0/0/0/0/0/0/0 Lore% 38 Gallery% 37 Achievement% 36 Wizard Run 0 Options --------- ASCII 0 Keyboard 0 Movement Mouse Keybinds 0 Fullscreen 1 Font 24/Terminus Map View 76x50 Tactical HUD 1 Map Filters NONE Filters NONE Steam 1 RUN: 1a0f1c4a-7063-4a9f-840b-d377ba1a055e